Cogmind - Beta 9.2 @@@ ROGUE MODE // 2019.11.18 @ 23:12:15 Player: Cassie Rose Result: Destroyed by B-75 Beast with Heavy Machine Gun Performance ------------- Evolutions (1) 500 Regions Visited (4) 800 Robots Destroyed (108) 540 Value Destroyed (2769) 2769 Prototype IDs (5) 100 Alien Tech Used (0) 0 Bonus (222) 222 TOTAL SCORE: 4931 Bonus ------- High Alert Combat Kills 22 Entered Garrisons 200 Cogmind --------- Core Integrity 0/400 Matter 286/300 Energy 265/265 System Corruption 0% Temperature Cool (0) Movement Treading (240) Ox4 Location -9/Garrison Parts ------- > --- POWER (1) -------- Improved Ion Engine > --- PROPULSION (3) --- Light Treads > --- UTILITY (3) ------ High-capacity Storage Unit High-capacity Storage Unit Light Armor Plating > --- WEAPON (2) ------- Shotgun Improved Light Cannon > --- INVENTORY (20) --- Improved Ion Engine Heat Sink Sensor Array Transport Network Coupler Hacking Suite Hacking Suite Trap Extractor Trap Extractor Improved Medium Laser Improved Medium Laser Improved Medium Laser Heavy Particle Cannon Heavy Particle Cannon Improved Assault Rifle Datajack Datajack Peak State ------------ > --- POWER ------------ Improved Ion Engine > --- PROPULSION ------- Light Treads Light Treads Improved Treads > --- UTILITY ---------- High-capacity Storage Unit High-capacity Storage Unit Sensor Array > --- WEAPON ----------- EM Pulse Cannon Improved Assault Rifle > --- INVENTORY -------- Improved Ion Engine Transport Network Coupler Hacking Suite Hacking Suite Trap Extractor Trap Extractor Heavy EM Pulse Gun Improved Medium Laser Improved Medium Laser Improved Medium Laser EM Pulse Cannon Heavy Particle Cannon Heavy Particle Cannon Heavy Particle Cannon Shotgun Improved Light Cannon Grenade Launcher Datajack Datajack [Rating: 19] Favorites ----------- Power Improved Ion Engine Engine Improved Ion Engine Propulsion Light Treads Treads Light Treads Utility High-capacity Storage Unit Device Sensor Array Storage High-capacity Storage Unit Protection Medium Armor Plating Weapon Light Assault Rifle Energy Gun Medium Laser Energy Cannon Heavy Particle Cannon Ballistic Gun Light Assault Rifle Ballistic Cannon Improved Light Cannon Launcher Grenade Launcher Special Weapon Mining Laser Special Melee Weapon Datajack Build | -11 -10 -9 -9 -9 ------- Run | Scr Mat Mat Sto Gar Slots Evolved 2 | . . 2 . . Power . | . . . . . Propulsion 1 | . . 1 . . Utility 1 | . . 1 . . Weapon . | . . . . . Parts Attached 74 | 11 17 17 22 7 Power 8 | 1 2 2 3 . Engine 8 | 1 2 2 3 . Core . | . . . . . Reactor . | . . . . . Propulsion 19 | 2 3 6 8 . Treads 19 | 2 3 6 8 . Leg . | . . . . . Wheel . | . . . . . Hover . | . . . . . Flight . | . . . . . Utility 16 | 2 3 6 2 3 Device 3 | 1 . 1 . 1 Storage 5 | 1 1 3 . . Processor . | . . . . . Hackware . | . . . . . Protection 8 | . 2 2 2 2 Artifact . | . . . . . Weapon 31 | 6 9 3 9 4 Energy Gun 5 | . 3 1 1 . Energy Cannon 7 | . 2 . 5 . Ballistic Gun 11 | 4 3 . 2 2 Ballistic Cannon 3 | . . 2 . 1 Launcher 2 | . 1 . 1 . Special Weapon 2 | 2 . . . . Impact Weapon . | . . . . . Slashing Weapon . | . . . . . Piercing Weapon . | . . . . . Special Melee Weapon 1 | . . . . 1 Unidentified Prototypes 1 | . . . 1 . Parts Lost 21 | . 1 8 8 4 Power . | . . . . . Propulsion 6 | . . 2 2 2 Utility 6 | . 1 3 1 1 Weapon 9 | . . 3 5 1 Highest Loss Streak 4 | . 1 4 2 1 Average Slot Usage (%) 95 | . 99 92 95 85 Engine 12 | . 14 11 11 11 Treads 29 | . 27 30 32 24 Device 2 | . 2 2 3 4 Storage 18 | . 14 21 22 22 Protection 6 | . 11 5 3 1 Energy Gun 7 | . 13 6 3 . Energy Cannon 5 | . 2 . 11 12 Ballistic Gun 8 | . 12 5 5 8 Ballistic Cannon 2 | . . 10 1 . Naked Turns . | . . . . . Heaviest Build 84 | 13 34 79 84 83 Greatest Support 66 | 40 46 66 66 60 Greatest Overweight (x) 4 | 2 1 1 1 4 Average Overweight (x) . | . . . 1 1 Largest Inventory Capacity 20 | 6 10 20 20 20 Average Capacity 15 | 5 9 18 20 20 Most Carried 20 | 6 10 20 20 17 Average Carried 13 | 4 8 14 18 16 Final Capacity 20 | 6 10 20 20 20 Final Carried 20 | 5 9 20 17 16 Class Distribution -------------------- 51% | Hauler-Mutant 47% | Mutant Dominant Class ---------------- Mutant | -10/Materials Hauler-Mutant | -9/Materials Hauler-Mutant | -9/Storage Hauler-Mutant | -9/Garrison Resources | -11 -10 -9 -9 -9 ----------- Run | Scr Mat Mat Sto Gar Matter Collected 1718 | 357 388 416 407 150 Remotely . | . . . . . Salvage Created 3601 | 213 844 772 1239 533 Parts 228 | 21 55 52 58 42 Haulers Intercepted 7 | . 2 2 3 . Recyclers Shooed 6 | 1 3 1 1 . Parts Field Recycled . | . . . . . Retrieved Matter . | . . . . . Parts Self-Destructed . | . . . . . Prevented . | . . . . . Kills | -11 -10 -9 -9 -9 ------- Run | Scr Mat Mat Sto Gar Combat Hostiles Destroyed 82 | . 20 18 24 20 Guns 34 | . 14 6 4 10 Cannons 39 | . 5 12 12 10 AOE 8 | . 1 . 7 . Classes Destroyed 11 | 3 5 2 . 1 Worker 3 | 2 . . 1 . Tunneler 5 | 5 . . . . Hauler 7 | . 2 2 3 . Recycler 3 | 1 1 1 . . Operator 2 | . 1 1 . . Watcher 6 | . 3 2 1 . Swarmer 25 | . 8 3 3 11 Grunt 36 | . 12 9 11 4 Brawler 1 | . . . . 1 Duelist 3 | . . 1 1 1 Sentry 17 | . . 5 9 3 Best Kill Streak 7 | 4 7 4 5 4 Combat Bots Only 4 | . 4 3 3 4 Max Kills in Single Turn 2 | 1 2 1 2 2 Gunslinging 1 | . 1 . . . Exploded 2 | . 1 . 2 . Melee . | . . . . . Uniques/NPCs Destroyed . | . . . . . Combat | -11 -10 -9 -9 -9 -------- Run | Scr Mat Mat Sto Gar Damage Taken 4552 | . 1062 1278 1566 646 Core 574 | . 159 177 141 97 Absorbed by Shields 42 | . . . . 42 Core Remaining (%) 68 | 100 36 . . . Volleys Fired 296 | 22 100 70 77 27 Largest 2 | 2 2 2 2 2 Hottest 200 | 200 120 95 150 150 Shots Fired 574 | 44 187 140 149 54 Gun 372 | 32 163 80 76 21 Cannon 187 | . 24 60 70 33 Launcher 3 | . . . 3 . Special 12 | 12 . . . . Kinetic 342 | 32 120 106 58 26 Thermal 165 | 12 67 34 24 28 Explosive 3 | . . . 3 . Electromagnetic 64 | . . . 64 . Robot Hit Streak 17 | 5 14 13 17 14 Robot Miss Streak 7 | 2 7 2 3 5 Penetration Max . | . . . . . Secondary Targets 3 | . 3 . . . Max Gunslinging Chain 1 | . 1 . . . Shots Hit Robots 385 | 25 114 103 109 34 Core Hits 163 | 11 50 39 38 25 Critical Hits 5 | . 1 . 3 1 Critical Kills 1 | . 1 . . . Critical Parts Destroyed 4 | . . . 3 1 Melee Attacks . | . . . . . Impact . | . . . . . Slashing . | . . . . . Piercing . | . . . . . Sneak Attacks . | . . . . . Combat Hostiles . | . . . . . Follow-up Attacks . | . . . . . Damage Inflicted 6686 | 280 1616 1599 2461 730 Guns 2880 | 208 1019 721 720 212 Cannons 2826 | . 212 878 1218 518 Explosions 908 | . 385 . 523 . Melee . | . . . . . Ramming . | . . . . . Kinetic 2934 | 208 721 1195 530 280 Thermal 2101 | 72 510 404 665 450 Explosive 506 | . 385 . 121 . Electromagnetic 1145 | . . . 1145 . Impact . | . . . . . Slashing . | . . . . . Piercing . | . . . . . Highest Corruption 2 | . 2 . . . Average Corruption 2 | . 2 . . . Corruption Purged . | . . . . . Effects 16 | . 16 . . . Message Errors 7 | . 7 . . . Heat Flow Errors 1 | . 1 . . . Energy Discharges 5 | . 5 . . . Data Loss (minor) 2 | . 2 . . . Targeting Errors 1 | . 1 . . . Overload Shots . | . . . . . Overflow Damage 213 | 8 142 8 45 10 Projectiles 41 | 8 . 8 15 10 Explosions 172 | . 142 . 30 . Melee . | . . . . . Knockbacks 10 | . . 10 . . Impact . | . . . . . Kinetic 9 | . . 9 . . Secondary 1 | . . 1 . . Self-Inflicted Damage 306 | . . . 306 . Shots 7 | . . . 7 . Rammed . | . . . . . Targets Rammed . | . . . . . Kicked . | . . . . . Crushed . | . . . . . Highest Temperature 350 | 112 342 247 329 350 Average Temperature 81 | 40 87 61 77 142 Received Heat Transfer 1441 | . 390 453 462 136 Effects 4 | . 4 . . . Shutdowns 1 | . 1 . . . Energy Bleed 1 | . 1 . . . Short Circuit 1 | . 1 . . . Damage (minor) 1 | . 1 . . . Siege Activations . | . . . . . Robots Corrupted 1 | . . . 1 . Combat Hostiles 1 | . . . 1 . Parts Fried 6 | . . . 6 . Impact Corruptions . | . . . . . Robots Melted . | . . . . . Combat Hostiles . | . . . . . Parts Melted 3 | . 2 . 1 . Heat Transferred 4162 | 150 1332 1073 981 626 Parts Sabotaged . | . . . . . Parts Stolen . | . . . . . Parts Stripped . | . . . . . Power Chain Reactions 8 | . . . 8 . Missiles Intercepted . | . . . . . Alert | -11 -10 -9 -9 -9 ------- Run | Scr Mat Mat Sto Gar Peak Influence 485 | 40 334 214 310 485 Average Influence 116 | 24 79 97 131 255 Maximum Alert Level 2 | . 1 1 1 2 Low Security (%) 84 | 100 93 93 83 34 Level 1 14 | . 6 6 16 55 Level 2 1 | . . . . 9 Level 3 . | . . . . . Level 4 . | . . . . . Level 5 . | . . . . . High Security . | . . . . . Max Security . | . . . . . Squads Dispatched 6 | . 2 2 2 . Investigation 3 | . 1 1 1 . Extermination . | . . . . . Reinforcement 3 | . 1 1 1 . Assault . | . . . . . Garrison . | . . . . . Intercept . | . . . . . Construction Impeded . | . . . . . Haulers Reinforced . | . . . . . Stealth | -11 -10 -9 -9 -9 --------- Run | Scr Mat Mat Sto Gar Distress Signals 6 | . 3 1 2 . Communications Jammed . | . . . . . Distress Signals . | . . . . . Times Spotted 138 | . 55 26 33 24 Peak Tracking Total 6 | . 5 3 6 4 Tactical Retreats 24 | . 19 2 2 1 Traps | -11 -10 -9 -9 -9 ------- Run | Scr Mat Mat Sto Gar Traps Triggered 5 | . 1 . 1 3 Indirectly . | . . . . . Trap Hack Attempts . | . . . . . Triggered . | . . . . . Disarmed . | . . . . . Reprogrammed . | . . . . . Reused . | . . . . . Traps Extracted . | . . . . . Installed . | . . . . . Triggered . | . . . . . Machines | -11 -10 -9 -9 -9 ---------- Run | Scr Mat Mat Sto Gar Machines Disabled 10 | . 4 . 6 . Max in Single Turn 3 | . 3 . 2 . Machines Sabotaged . | . . . . . Garrisons Compromised . | . . . . . Overloaded Fab Kills . | . . . . . Fab Network Shutdowns . | . . . . . Hacking | -11 -10 -9 -9 -9 --------- Run | Scr Mat Mat Sto Gar Machines Accessed 18 | . 7 4 7 . Terminals 15 | . 6 3 6 . Fabricators . | . . . . . Repair Stations 1 | . 1 . . . Recycling Units . | . . . . . Scanalyzers 1 | . . 1 . . Garrison Access 1 | . . . 1 . Total Hacks 74 | . 28 29 17 . Successful 51 | . 17 23 11 . Failed 23 | . 11 6 6 . Catastrophic 4 | . 2 1 1 . Database Lockouts . | . . . . . Manual 41 | . 18 9 14 . Terminals 51 | . 26 10 15 . Fabricators . | . . . . . Repair Stations 2 | . 2 . . . Recycling Units . | . . . . . Scanalyzers 19 | . . 19 . . Garrison Access 2 | . . . 2 . Terminal Hacks 14 | . 8 2 4 . Robot Analysis 1 | . 1 . . . Prototype ID Bank 2 | . 1 . 1 . Level Access Points 1 | . 1 . . . Branch Access Points 2 | . 1 1 . . Unreport Threat 6 | . 2 1 3 . Zone Layout 2 | . 2 . . . Fabricator Hacks . | . . . . . Repair Station Hacks 2 | . 2 . . . Scan Component 1 | . 1 . . . Repair 1 | . 1 . . . Recycling Unit Hacks . | . . . . . Scanalyzer 18 | . . 18 . . Insert Component 9 | . . 9 . . Analyze 9 | . . 9 . . Garrison Access Hacks 1 | . . . 1 . Unlock Access 1 | . . . 1 . Unauthorized Hacks 38 | . 18 7 13 . Terminals 16 | . 7 3 6 . Botnet 13 | . 4 3 6 . Detonate 3 | . 3 . . . Fabricators . | . . . . . Repair Stations . | . . . . . Recycling Units . | . . . . . Scanalyzers . | . . . . . Garrison Access . | . . . . . Data Cores Recovered . | . . . . . Used . | . . . . . Hacking Detections 18 | . 7 4 7 . Full Trace Events 2 | . 1 1 . . Feedback Events . | . . . . . Feedback Blocked . | . . . . . Robot Schematics Acquired . | . . . . . Robots Built . | . . . . . Matter . | . . . . . Time . | . . . . . Total Robot Build Rating . | . . . . . Part Schematics Acquired 9 | . . 9 . . Parts Built . | . . . . . Matter . | . . . . . Time . | . . . . . Total Part Build Rating . | . . . . . Parts Repaired 1 | . 1 . . . Time 44 | . 44 . . . Parts Recycled . | . . . . . Recycled Matter . | . . . . . Retrieved Matter . | . . . . . Retrieved Components . | . . . . . Parts Scanalyzed 9 | . . 9 . . Part Schematics Acquired 9 | . . 9 . . Parts Damaged . | . . . . . Bothacking | -11 -10 -9 -9 -9 ------------ Run | Scr Mat Mat Sto Gar Used RIF Installer . | . . . . . Robots Hacked . | . . . . . Non-combat . | . . . . . Combat . | . . . . . Robot Hacks Applied . | . . . . . Relay Couplers Released . | . . . . . Robots Rewired . | . . . . . Allies Hacked . | . . . . . Hacks Repelled . | . . . . . Allies | -11 -10 -9 -9 -9 -------- Run | Scr Mat Mat Sto Gar Total Allies . | . . . . . Largest Group . | . . . . . Highest-Rated Group . | . . . . . Highest-Rated Ally . | . . . . . Total Orders . | . . . . . Ally Attacks . | . . . . . Total Damage . | . . . . . Kills . | . . . . . Allies Corrupted . | . . . . . Allies Melted . | . . . . . Intel | -11 -10 -9 -9 -9 ------- Run | Scr Mat Mat Sto Gar Robot Analysis Total 1 | . 1 . . . Derelict Logs Recovered . | . . . . . Drone Launches . | . . . . . Drone Recoveries . | . . . . . Exploration | -11 -10 -9 -9 -9 ------------- Run | Scr Mat Mat Sto Gar Turns Passed 5795 | 256 2034 1185 1637 683 Spaces Moved 2430 | 72 890 499 671 298 Core 11 | 11 . . . . Treads 2419 | 61 890 499 671 298 Legs . | . . . . . Wheels . | . . . . . Hover . | . . . . . Flight . | . . . . . Fastest Speed 50 | 50 160 160 180 180 Average Speed 174 | 153 165 175 180 191 Slowest Speed 240 | 160 180 180 180 240 Overloaded Moves . | . . . . . Propulsion Burnouts . | . . . . . Robots Hopped . | . . . . . Cave-ins Triggered . | . . . . . Exploration Rate (%) 54 | 5 100 34 89 44 Regions Visited 4 Branch Regions 1 Pre-discovered Areas . | . . . . . Known Exits Taken 3 | . 1 1 1 . Unknown Exits Taken 1 | 1 . . . . Scrap Searched . | . . . . . Spaces Dug 5 | 5 . . . . Terrain Destroyed 92 | 8 9 1 74 . Melee . | . . . . . Projectile 16 | 8 . 1 7 . AOE 76 | . 9 . 67 . Actions | -11 -10 -9 -9 -9 --------- Run | Scr Mat Mat Sto Gar Total 3421 | 151 1283 681 950 356 Wait 510 | 35 234 59 164 18 Move 2426 | 71 889 498 670 298 Hop . | . . . . . Pick Up 75 | 12 23 29 9 2 Fast Attach 1 | . 1 . . . Attach 32 | 7 4 10 7 4 Detach 1 | . . . . 1 Swap 41 | 4 12 7 15 3 Drop 36 | . 20 8 8 . Fire 296 | 22 100 70 77 27 Melee . | . . . . . Ram . | . . . . . Kick . | . . . . . Crush . | . . . . . Escape Stasis 3 | . . . . 3 Rewire . | . . . . . Trap . | . . . . . Miscellaneous . | . . . . . Route ------- -11/Scrapyard -10/Materials (discovered 5 exits: *Mat x3 / *Min x2) -9/Materials (discovered 4 exits: [*Mat] / Min / *Sto x2) -9/Storage -9/Garrison (discovered 1 exit: [*Rec]) History --------- Turn | Location | Event 19 | -11/Scrapyard | Discovered new exit (range 15) 257 | -11/Scrapyard | Entered Materials 303 | -10/Materials | Build established: Mutant 868 | -10/Materials | Discovered new exit (range 16) 884 | -10/Materials | Discovered new exit (range 13) 907 | -10/Materials | Identified exit to Mines 907 | -10/Materials | Identified exit to Materials 1379 | -10/Materials | Core integrity fell below 50% 2049 | -10/Materials | Repaired Imp. Treads 2291 | -10/Materials | Entered another Materials area 2291 | -9/Materials | Evolved 2 slots: Propulsion x1, Utility x1 2291 | -9/Materials | Discovered new exit (range 7) 2493 | -9/Materials | Discovered new exit (range 8) 2895 | -9/Materials | Lost 4 parts (1n2u1w) 3060 | -9/Materials | Build established: Hauler-Mutant 3099 | -9/Materials | Discovered new exit (range 16) 3237 | -9/Materials | Identified exit to Mines 3237 | -9/Materials | Identified exit to Storage 3476 | -9/Materials | Entered Storage 3839 | -9/Storage | Core integrity fell below 50% 4310 | -9/Storage | Identified exit to Garrison 5113 | -9/Storage | Entered Garrison 5194 | -9/Garrison | Triggered checkpoint 5252 | -9/Garrison | Triggered checkpoint 5256 | -9/Garrison | Core integrity fell below 20% 5344 | -9/Garrison | Triggered checkpoint 5416 | -9/Garrison | Discovered new exit (range 10) 5450 | -9/Garrison | Triggered checkpoint 5722 | -9/Garrison | Triggered checkpoint 5756 | -9/Garrison | Triggered checkpoint 5792 | -9/Garrison | Spotted B-75 Beast 5796 | -9/Garrison | Destroyed by B-75 Beast with Heavy Machine Gun Last Messages --------------- 05476_ Acquired Heat Sink. 05482_ Acquired 10 matter. 05488_ Acquired Lgt. Armor Plating. 05500_ ALERT: Garrison interior compromised. 05576_ Acquired 20 matter. 05636_ Triggered Stasis Trap. 05636_ A bubble of rippling energy engulfs the area. 05636_ Field strength at 70. 05638_ Field strength at 40. 05639_ Field strength at 10. 05640_ Stasis field depleted. 05722_ Beams of light sweep through the air. An alarm sounds. 05728_ Hvy. Particle Cannon destroyed. 05730_ G-34 Mercenary destroyed. 05737_ Acquired 29 matter. 05769_ Emergency Access malfunctions. 05783_ S-10 Pest destroyed. 05785_ Lgt. Treads destroyed. 05786_ S-10 Pest destroyed. 05792_ Acquired 15 matter. Map ----- +----------------------------------------------------+ | ?????????????????????????????????????????????????? | | ?????????????????????????????????????????????????? | | ?????????????????????????????????????????????????? | | ?????????????????????????????????????????????????? | | ?????????????????????????????????????????????????? | | ?????????????????????????????????????????????????? | | ?????????????????????????????????????????????????? | | ?????????????????????????????????????????????????? | | ???????????????????????? ???????????????????????? | | ???????????????????????? ???????????????????????? | | ???????????????????????? ???????????????????????? | | ???????????????????????# ???????????????????????? | | ???????????????????????# ???????????????????????? | | ???????????????????????#BB#??????####????????????? | | ??????????????????????? BB ?????? #????????????? | | ??????????????????????? ?????? #????????????? | | ???????????????????????# #??????# #????????????? | | ???????????????????????# #??????# #????????????? | | ???????????????????????# #??????# #????????????? | | ???????????????????????# #??????# #????????????? | | ???????????????????????# #??????# #????????????? | | ???????????????????????# #??????# #######??????? | | ???????????????????????# #??????# ## #??????? | | ???????????????????????# #?????## ## %* ######## | | ???????????????????????# ####### =%!! | | ???????????????????????#*@[=[ [% | | ???????????????????????#=%*% | | ???????????????????????##/####### ## ## ### | | ????????????????????????# #?????# ## ## ### | | ???????????????????????? ;?????" ^ # | | ???????????????????????####?????" ^ # | | ????????????????????????????????" ^ # | | ????????????????????????????????" ^ *[ * # | | ????????????????????????????????# ## ##%%*### | | ????????????????????????????????# ## ##[%=### | | ??????????????????????#?????????# =[* =[== | | ?????????????????????? ?????????# %%= = = | | ?????????????????????# #????????# * = ### | | ?????????????????????# #????????## ## ## ##?? | | ?????????????????????# #?????????# ## ## #??? | | ?????????????????????# #?????????# ######## #??? | | ?????????????????????#=!?????????# #??????# #??? | | ?????????????#### ####+#?????????# #??????# #??? | | ??????# %#?????????# #??????# #??? | | ?????????????### ###/#?????????# #??????# #??? | | ?????????????????????#!#?????????# #??????# #### | | ?????????????????????#%#?????????# #??????# | | ?????????????????????#=########### #??????# | | ?????????????????????#%= #??????####### | | ?????????????????????+ #????????????? | +----------------------------------------------------+ Best States ------------- Heat Dissipation 38 Energy Generation 12 Energy Capacity 265 Matter Stores 300 Matter Capacity 300 Sight Range 16 Robot Scan Range 10 Terrain Scan Range 16 Terrain Scan Density 10 Armor Coverage 225 Evasion (%) 40 Recoil Reduction 3 Item Schematics ----------------- Imp. Medium Laser | -9/Materials | Scanalyzed Datajack | -9/Materials | Scanalyzed Hacking Suite | -9/Materials | Scanalyzed Imp. Ion Engine | -9/Materials | Scanalyzed Trap Extractor | -9/Materials | Scanalyzed Sensor Array | -9/Materials | Scanalyzed Grenade Launcher | -9/Materials | Scanalyzed Shotgun | -9/Materials | Scanalyzed Lgt. Treads | -9/Materials | Scanalyzed Robot Schematics ------------------ None Fabricated ------------ Nothing Alien Tech Used ----------------- None Achievements -------------- Safety First Challenges ------------ None Game ------ Seed SalvageGravitonScreen Manual? 0 Play Time 01:06:16 Cumulative 22.5 hours Start 2019.11.18 @ 22:02:25 End 2019.11.18 @ 23:12:15 Sessions 1 Manual Loads 0 Difficulty Rogue Special Mode None Game No. 31 Rogue 31 Adventurer 0 Explorer 0 Win Type - Total 0 Types 0/0/0/0/0/0/0 Lore% 20 Gallery% 16 Achievement% 18 Wizard Run 0 Options --------- ASCII 0 Keyboard 0 Movement Mouse Keybinds 0 Fullscreen 1 Font 18/X11 Map View 76x50 Tactical HUD 1 Map Filters NONE Filters LOW_CONTRAST(13,24,33) Steam 1 RUN: 49262f06-1c49-4d98-a9a7-aac704e9c6bb